bitfinex-derivatives/quotes_BTCF0:USTF0_20250910
["timestamp","ask_amount","ask_price","bid_price","bid_amount"]
[1757511303254,0.3608,113650.0,113630.0,1.02610656]
[1757511303555,0.38369,113650.0,113640.0,0.08155965]
[1757511304159,0.81002656,113650.0,113640.0,0.04680965]
[1757511304368,0.03631,113640.0,113630.0,0.04780965]
[1757511304663,0.38369,113640.0,113630.0,0.08255965]
[1757511304856,0.38369,113640.0,113630.0,0.19926656]
[1757511305357,0.38369,113640.0,113630.0,0.20026656]
[1757511305756,0.09471724,113650.0,113640.0,0.01364]
[1757511305958,0.02289,113660.0,113650.0,0.03475]
[1757511306264,0.02289,113660.0,113650.0,0.24511978]
[1757511306461,0.38369,113660.0,113650.0,0.91040322]
[1757511306661,0.38369,113660.0,113650.0,1.07391978]
[1757511307263,0.38369,113660.0,113650.0,1.07387978]
[1757511307466,0.38369,113660.0,113650.0,0.08160322]
[1757511307761,0.38369,113660.0,113650.0,0.91052322]
[1757511307961,0.38369,113660.0,113650.0,1.07403978]
[1757511308354,0.45523018,113680.0,113670.0,0.02233]
[1757511308560,0.45523018,113680.0,113670.0,0.8645]
[1757511309262,0.45523018,113680.0,113670.0,0.19909656]
[1757511309461,0.45523018,113680.0,113670.0,1.02789656]
[1757511309766,0.46023018,113680.0,113670.0,1.02793656]
[1757511309970,0.46023018,113680.0,113670.0,0.86442]
[1757511310367,0.46023018,113680.0,113670.0,0.19909656]
[1757511310665,0.46023018,113680.0,113670.0,1.07502615]
[1757511310967,0.46023018,113680.0,113670.0,1.07470615]
[1757511311159,0.38864,113680.0,113670.0,1.07470615]
[1757511311361,0.005,113680.0,113670.0,1.68550615]
[1757511311561,0.005,113680.0,113670.0,0.85682615]
[1757511311762,0.005,113680.0,113670.0,1.68538615]
[1757511312169,0.005,113680.0,113670.0,1.68530615]
[1757511312671,0.005,113680.0,113670.0,1.68518615]
[1757511313168,0.005,113680.0,113670.0,0.85682615]
[1757511313372,0.005,113680.0,113670.0,1.68494615]
[1757511313774,0.005,113680.0,113670.0,1.68482615]
[1757511314667,0.005,113680.0,113670.0,0.85682615]
[1757511314873,0.02784,113680.0,113670.0,0.33250959]
[1757511315073,0.02784,113680.0,113670.0,1.27665656]
[1757511315276,0.02784,113680.0,113670.0,0.44909656]
[1757511315462,0.38864,113680.0,113670.0,1.27665656]
[1757511315666,0.02784,113680.0,113670.0,1.27689656]
[1757511315873,0.02784,113680.0,113670.0,1.27693656]
[1757511316070,0.02784,113680.0,113670.0,1.27689656]
[1757511316274,0.02784,113680.0,113670.0,1.32382615]
[1757511316668,0.02784,113680.0,113670.0,1.27677656]
[1757511316973,0.02784,113680.0,113670.0,1.32370615]
[1757511317177,0.02784,113680.0,113670.0,1.32358615]
[1757511317375,0.02784,113680.0,113670.0,0.49602615]
[1757511317575,0.02484,113680.0,113670.0,1.32550615]
[1757511318075,0.002,113680.0,113670.0,1.32550615]
[1757511318270,0.4516813,113690.0,113670.0,1.27857656]
[1757511318466,0.4745213,113690.0,113680.0,0.8629]
[1757511319264,0.7379413,113690.0,113680.0,0.02233]
[1757511319469,0.03626,113680.0,113670.0,0.003]
[1757511319670,0.56057656,113680.0,113670.0,0.003]
[1757511319871,0.39706,113680.0,113670.0,0.002]
[1757511320070,0.39706,113680.0,113670.0,0.02233]
[1757511320270,0.39706,113680.0,113670.0,0.03558]
[1757511320971,0.38564,113680.0,113670.0,0.03558]
[1757511321570,0.38464,113680.0,113670.0,0.19909656]
[1757511321776,0.38464,113680.0,113670.0,0.8629]
[1757511321974,0.38464,113680.0,113670.0,0.86282]
[1757511322169,0.38464,113680.0,113670.0,0.03558]
[1757511322374,0.81157656,113680.0,113670.0,0.82724]
[1757511322577,0.03566,113670.0,113660.0,0.04692959]
[1757511322879,0.55997656,113670.0,113660.0,0.77905]
[1757511323078,0.39646,113670.0,113660.0,0.7923]
[1757511323274,0.38364,113670.0,113660.0,0.83922959]
[1757511323473,0.38364,113670.0,113660.0,0.08250959]
[1757511323674,0.39646,113670.0,113660.0,0.89625959]
[1757511323978,0.39646,113670.0,113660.0,0.89725959]
[1757511324178,0.38364,113670.0,113660.0,0.91050959]
[1757511324569,0.39646,113670.0,113660.0,0.89725959]
[1757511325074,0.38364,113670.0,113660.0,0.91050959]
[1757511326478,0.4516813,113690.0,113670.0,0.03558]
[1757511326672,0.4516813,113690.0,113680.0,1.02565656]
[1757511326673,0.4745213,113690.0,113680.0,1.02565656]
[1757511327076,0.0908813,113690.0,113680.0,1.02565656]
[1757511327278,0.0908813,113690.0,113680.0,0.86214]
[1757511327480,0.4745213,113690.0,113680.0,1.02565656]
[1757511327679,0.0908813,113690.0,113680.0,1.02565656]
[1757511327883,0.65115786,113690.0,113670.0,0.06017959]
[1757511328082,0.4896413,113690.0,113680.0,0.84913]
[1757511328283,0.65315786,113690.0,113680.0,0.84913]
[1757511328583,0.4906413,113690.0,113680.0,0.84913]
[1757511329177,0.4896413,113690.0,113680.0,0.84913]
[1757511329481,0.4906413,113690.0,113680.0,0.84913]
[1757511329683,0.65415786,113690.0,113680.0,0.82632]
[1757511329879,0.7599183,113690.0,113680.0,0.82632]
[1757511330086,0.92343486,113690.0,113660.0,0.06017959]
[1757511330273,0.53773656,113680.0,113660.0,0.06017959]
[1757511330476,0.56057656,113680.0,113670.0,0.82636]
[1757511330775,0.38364,113680.0,113670.0,0.86194]
[1757511330978,0.02284,113680.0,113670.0,1.02545656]
[1757511331277,0.4526813,113690.0,113680.0,0.03558]
[1757511331579,0.49680234,113690.0,113680.0,0.03558]
[1757511331980,0.49480234,113690.0,113680.0,0.03558]
[1757511332285,0.49380234,113690.0,113680.0,0.86214]
[1757511332470,0.49480234,113690.0,113680.0,1.02565656]
[1757511332676,0.1147213,113690.0,113680.0,1.02565656]
[1757511332876,0.1147213,113690.0,113680.0,0.86214]
[1757511333182,0.0918813,113690.0,113680.0,1.02565656]
[1757511334488,0.0938813,113690.0,113680.0,1.38645656]
[1757511334880,0.003,113690.0,113680.0,1.68338615]
[1757511336586,0.003,113690.0,113680.0,1.32258615]
[1757511336786,0.003,113690.0,113680.0,1.68338615]
[1757511337090,0.06912523,113730.0,113720.0,0.01325]
[1757511337280,0.04214444,113730.0,113720.0,1.02489656]
[1757511337486,0.01930444,113730.0,113720.0,1.02489656]
[1757511338284,0.02430444,113730.0,113720.0,1.02489656]
[1757511338481,0.04714444,113730.0,113720.0,0.19909656]
[1757511338687,0.40994444,113730.0,113720.0,0.86138]
[1757511338887,0.04914444,113730.0,113720.0,0.86138]
[1757511339084,0.04914444,113730.0,113720.0,1.02489656]
[1757511339988,0.40994444,113730.0,113720.0,1.02489656]
[1757511340177,0.74260211,113730.0,113720.0,0.82532]
[1757511340381,0.03527,113720.0,113710.0,0.18627656]
[1757511340583,0.04134444,113720.0,113710.0,1.02583437]
[1757511340784,0.04134444,113720.0,113710.0,1.38663437]
[1757511341090,0.01930444,113720.0,113710.0,1.38663437]
[1757511341588,0.01930444,113720.0,113710.0,1.22212]
[1757511341888,0.01930444,113720.0,113710.0,1.47557067]
[1757511342091,0.02204,113740.0,113730.0,0.036]
[1757511342290,0.01927425,113740.0,113730.0,1.19038874]
[1757511342488,0.01927425,113740.0,113730.0,0.56131437]
[1757511342792,0.90039842,113740.0,113720.0,0.37404]
[1757511343092,0.02204,113730.0,113720.0,0.3968]
[1757511343292,0.04131425,113730.0,113720.0,1.22668]
[1757511343497,0.04131425,113730.0,113720.0,1.39119437]
[1757511343790,0.04131425,113730.0,113720.0,1.03039437]
[1757511344584,0.01927425,113730.0,113720.0,1.03039437]
[1757511344790,0.01927425,113730.0,113720.0,1.39119437]
[1757511344990,0.02027425,113730.0,113720.0,1.39119437]
[1757511345184,0.02027425,113730.0,113720.0,1.03039437]
[1757511345388,0.66634425,113730.0,113720.0,0.85268]
[1757511345591,0.83085862,113730.0,113720.0,0.85268]
[1757511345979,0.29331425,113730.0,113720.0,0.86592]
[1757511346480,0.04331425,113730.0,113720.0,1.39123437]
[1757511346684,0.04331425,113730.0,113720.0,1.03043437]
[1757511347084,0.05654425,113730.0,113720.0,0.85268]
[1757511347289,0.05654425,113730.0,113720.0,0.85368]
[1757511347490,0.05654425,113730.0,113720.0,0.85344]
[1757511347491,0.58185862,113730.0,113720.0,0.85344]
[1757511347692,0.41734425,113730.0,113720.0,0.85344]
[1757511348192,0.01323,113720.0,113700.0,0.01325]
[1757511348394,0.03527,113710.0,113700.0,0.7826]
[1757511348593,0.05454425,113710.0,113700.0,0.7826]
[1757511348893,0.04131425,113710.0,113700.0,0.79584]
[1757511349291,0.04131425,113710.0,113700.0,0.96035437]
[1757511349491,0.01927425,113710.0,113700.0,1.73566874]
[1757511349793,0.01927425,113710.0,113700.0,1.66109847]
[1757511350091,0.38284,113730.0,113720.0,0.036]
[1757511350290,0.57984952,113730.0,113720.0,0.02276]
[1757511350492,0.57984952,113730.0,113720.0,0.85316]
[1757511350797,0.40210515,113730.0,113720.0,0.8664]
[1757511351196,0.41533515,113730.0,113720.0,0.85288]
[1757511351392,0.02204,113710.0,113700.0,0.038]
[1757511351592,0.04130515,113710.0,113700.0,1.03263437]
[1757511351995,0.04130515,113710.0,113700.0,1.03363437]
[1757511352298,0.04130515,113710.0,113700.0,1.03159437]
[1757511352599,0.57984952,113710.0,113700.0,0.85384]
[1757511352797,0.57984952,113710.0,113700.0,0.83092]
[1757511353092,0.82984952,113710.0,113700.0,0.003]
[1757511353797,0.95987784,113710.0,113700.0,0.003]
[1757511353995,0.03504,113690.0,113680.0,0.0181322]
[1757511354295,0.02204,113670.0,113660.0,0.0469376]
[1757511354498,0.56058437,113670.0,113650.0,0.5513776]
[1757511354890,0.56058437,113670.0,113650.0,0.0469376]
[1757511354891,0.56035437,113660.0,113650.0,0.0469376]
[1757511355488,0.013,113650.0,113640.0,0.06448366]
[1757511355806,0.56035437,113650.0,113640.0,0.06448366]
[1757511356602,0.81035437,113650.0,113640.0,0.06448366]
[1757511356896,0.81035437,113650.0,113640.0,0.06748366]
[1757511357406,0.88070368,113650.0,113640.0,0.06748366]
[1757511357601,0.88070368,113650.0,113640.0,0.02054606]
[1757511358296,1.71058368,113650.0,113640.0,0.02054606]
[1757511358595,1.71062368,113650.0,113640.0,0.02054606]
[1757511358795,1.71062368,113650.0,113640.0,0.02254606]
[1757511360297,1.71062368,113650.0,113630.0,0.0469376]
[1757511360500,0.72009874,113640.0,113630.0,0.0469376]
[1757511361093,0.55558437,113640.0,113630.0,0.0469376]
[1757511361297,0.38284,113640.0,113630.0,0.20051437]
[1757511361494,0.38284,113640.0,113630.0,0.24745197]
[1757511361799,0.38284,113640.0,113630.0,0.0849376]
[1757511362703,0.38284,113640.0,113630.0,0.49845197]
[1757511363103,0.38284,113640.0,113630.0,0.49945197]
[1757511364291,0.38284,113640.0,113630.0,0.3349376]
[1757511366201,0.45318931,113650.0,113640.0,0.036]
[1757511366995,0.45318931,113650.0,113640.0,0.20051437]
[1757511367200,0.45318931,113650.0,113640.0,0.49745197]
[1757511367697,0.07034931,113650.0,113640.0,0.49745197]
[1757511367900,0.001,113650.0,113640.0,1.85228634]
[1757511368098,0.001,113650.0,113640.0,1.94027704]
[1757511368301,0.001,113650.0,113640.0,1.89333944]
[1757511368507,0.001,113650.0,113640.0,1.47632]
[1757511368704,0.001,113650.0,113640.0,1.22632]
[1757511369003,0.001,113650.0,113640.0,0.60811458]
[1757511369199,0.18807437,113650.0,113640.0,0.44360021]
[1757511369397,0.54887437,113650.0,113640.0,0.08280021]
[1757511370411,0.38436,113650.0,113640.0,0.08280021]
[1757511370604,0.38436,113650.0,113640.0,0.02276]
[1757511370909,0.56158437,113650.0,113630.0,0.06004021]
[1757511371108,0.38336,113640.0,113630.0,0.08301021]
[1757511372410,0.3927,113640.0,113630.0,0.06977021]
[1757511372610,0.55721437,113640.0,113630.0,0.06977021]
[1757511372806,0.55721437,113640.0,113630.0,0.04680021]
[1757511373199,0.80721437,113640.0,113630.0,0.04680021]
[1757511373403,0.80721437,113640.0,113630.0,0.04780021]
[1757511373913,0.80721437,113640.0,113630.0,0.001]
[1757511374212,0.80721437,113640.0,113630.0,0.002]
[1757511374807,0.6427,113640.0,113630.0,0.002]
[1757511375004,0.97172874,113640.0,113630.0,0.002]
[1757511375205,0.97172874,113640.0,113610.0,0.00035208]
[1757511375409,1.08489874,113620.0,113610.0,0.00035208]
[1757511375906,1.10506763,113620.0,113610.0,0.00035208]
[1757511376106,1.35506763,113620.0,113610.0,0.00035208]
[1757511376308,0.19943437,113590.0,113580.0,0.04680021]
[1757511376508,0.56023437,113590.0,113580.0,0.04680021]
[1757511376903,0.39572,113590.0,113580.0,0.06977021]
[1757511377103,0.38336,113590.0,113580.0,0.24697458]
[1757511378009,0.38336,113590.0,113580.0,0.24997458]
[1757511378715,0.3608,113590.0,113580.0,0.49997458]
[1757511378914,0.3608,113590.0,113580.0,0.50197458]
[1757511379115,0.3608,113590.0,113580.0,0.33746021]
[1757511379315,0.38336,113590.0,113580.0,0.08746021]
[1757511379703,0.54787437,113590.0,113580.0,0.08746021]
[1757511379907,0.55840437,113590.0,113580.0,0.05180021]
[1757511380108,0.55840437,113590.0,113580.0,0.005]
[1757511380308,0.55840437,113590.0,113580.0,0.05180021]
[1757511380504,0.62744579,113590.0,113580.0,0.07477021]
[1757511380911,0.62744579,113590.0,113580.0,0.05180021]
[1757511381814,0.87744579,113590.0,113580.0,0.05180021]
[1757511382123,1.87240016,113590.0,113580.0,0.005]
[1757511382416,1.87240016,113590.0,113560.0,0.06260685]
[1757511382713,0.7216,113570.0,113560.0,0.04380787]
[1757511382912,0.7216,113570.0,113560.0,0.07946787]
[1757511383418,0.7216,113570.0,113560.0,0.03566]
[1757511383606,0.7216,113570.0,113560.0,0.09826685]
[1757511383812,0.7216,113570.0,113560.0,0.03566]
[1757511384520,0.7216,113570.0,113560.0,0.20017437]
[1757511384718,1.19188,113580.0,113560.0,0.56097437]
[1757511384916,1.28388871,113590.0,113580.0,0.01269]
[1757511385111,1.28388871,113590.0,113580.0,0.03566]
[1757511385112,0.45268871,113590.0,113580.0,0.03566]
[1757511385714,0.45068871,113590.0,113580.0,0.03566]
[1757511386816,0.45068871,113590.0,113580.0,0.20017437]
[1757511387418,0.45668871,113590.0,113580.0,0.45017437]
[1757511387619,0.09588871,113590.0,113580.0,0.45017437]
[1757511388013,0.09588871,113590.0,113580.0,0.81097437]
[1757511388213,0.02484729,113590.0,113580.0,1.80736874]
[1757511389123,0.02484729,113590.0,113580.0,1.89540544]
[1757511389631,0.02484729,113590.0,113580.0,1.80736874]
[1757511389816,0.02484729,113590.0,113580.0,1.39285437]
[1757511390815,0.02484729,113590.0,113580.0,0.39646]
[1757511391021,0.55016166,113590.0,113580.0,0.03566]
[1757511391322,0.62200571,113590.0,113580.0,0.03566]
[1757511391525,0.62200571,113590.0,113580.0,0.01269]
[1757511392026,0.45749134,113590.0,113580.0,0.01269]
[1757511392317,0.62200571,113590.0,113580.0,0.03566]
[1757511393218,0.45749134,113590.0,113580.0,0.03566]
[1757511393419,0.62200571,113590.0,113580.0,0.03566]
[1757511394426,0.45749134,113590.0,113580.0,0.03566]
[1757511394617,0.62200571,113590.0,113580.0,0.03566]
[1757511395424,0.45749134,113590.0,113580.0,0.03566]
[1757511395620,0.62200571,113590.0,113580.0,0.03566]
[1757511395819,0.26120571,113590.0,113580.0,0.03566]
[1757511396126,0.45749134,113590.0,113580.0,0.01269]
[1757511396317,0.62200571,113590.0,113580.0,0.01269]
[1757511396719,0.45749134,113590.0,113580.0,0.20017437]
[1757511396914,0.45749134,113590.0,113580.0,0.03566]
[1757511398017,0.45749134,113590.0,113580.0,0.20017437]
[1757511398217,0.45749134,113590.0,113580.0,0.03566]
[1757511398527,0.45749134,113590.0,113580.0,0.20017437]
[1757511398918,0.45749134,113590.0,113580.0,0.03566]
[1757511399119,0.47698588,113590.0,113580.0,0.01269]
[1757511399319,0.47698588,113590.0,113580.0,0.03585]
[1757511399519,0.45749134,113590.0,113580.0,0.03585]
[1757511400128,0.47699653,113590.0,113580.0,0.03585]
[1757511400325,0.47699653,113590.0,113580.0,0.20036437]
[1757511400923,0.09669134,113590.0,113580.0,0.61487874]
[1757511401221,0.09669134,113590.0,113580.0,0.97567874]
[1757511401413,0.02484729,113590.0,113580.0,1.80735874]
[1757511401621,0.02484729,113590.0,113580.0,0.61487874]
[1757511401926,0.38564729,113590.0,113580.0,0.03585]
[1757511402126,0.40517718,113590.0,113580.0,0.03585]
[1757511402515,0.56899521,113590.0,113580.0,0.01269]
[1757511402720,1.71986854,113590.0,113570.0,0.01269]
[1757511402919,0.52461803,113580.0,113570.0,0.01269]
[1757511403119,0.54414792,113580.0,113570.0,0.01269]
[1757511403625,0.38032989,113580.0,113570.0,0.01269]
[1757511403927,0.38032989,113580.0,113570.0,0.03585]
[1757511405226,0.54414792,113580.0,113570.0,0.01269]
[1757511405422,0.54414792,113580.0,113560.0,0.01269]
[1757511405423,0.79414792,113580.0,113560.0,0.01269]
[1757511405624,0.52461803,113570.0,113560.0,0.01269]
[1757511405830,0.54411642,113570.0,113560.0,0.01269]
[1757511407718,0.38029839,113570.0,113560.0,0.01269]
[1757511407922,0.54411642,113570.0,113560.0,0.01269]
[1757511408125,0.38029839,113570.0,113560.0,0.01269]
[1757511408328,0.54411642,113570.0,113560.0,0.01269]
[1757511408525,1.37483642,113570.0,113560.0,0.01269]
[1757511408726,0.54411642,113570.0,113560.0,0.01269]
[1757511409025,1.37423642,113570.0,113560.0,0.01269]
[1757511409223,1.62423642,113570.0,113550.0,0.01269]
[1757511409431,0.52461803,113560.0,113550.0,0.01269]
[1757511409828,0.79412958,113560.0,113550.0,0.01269]
[1757511410329,0.79412958,113560.0,113540.0,0.03097059]
[1757511410633,0.52461803,113550.0,113540.0,0.03097059]
[1757511410832,1.35569803,113550.0,113540.0,0.03097059]
[1757511411225,0.52461803,113550.0,113540.0,0.03097059]
[1757511411536,0.4315846,113550.0,113540.0,0.21794862]
[1757511411831,0.4315846,113550.0,113540.0,0.05413059]
[1757511414236,0.59540263,113550.0,113540.0,0.05413059]
[1757511414421,0.84540263,113550.0,113540.0,0.01808059]
[1757511414827,0.86493375,113550.0,113540.0,0.01808059]
[1757511415932,0.86493375,113550.0,113540.0,5.9e-07]
[1757511416126,0.86493375,113550.0,113520.0,0.07746911]
[1757511416330,0.88541803,113530.0,113520.0,0.05985496]
[1757511416928,1.13541803,113530.0,113510.0,0.06020735]
[1757511417135,0.3608,113520.0,113510.0,0.08336735]
[1757511419850,0.3618,113520.0,113510.0,0.08336735]
[1757511420535,1.191,113520.0,113510.0,0.08336735]
[1757511420732,0.3618,113520.0,113510.0,0.08336735]
[1757511420934,0.3618,113520.0,113510.0,0.33336735]
[1757511421439,0.3618,113520.0,113510.0,0.45022042]
[1757511421835,0.3618,113520.0,113510.0,0.51282727]
[1757511422039,0.001,113520.0,113510.0,0.87362727]
[1757511422240,0.001,113520.0,113510.0,0.96171827]
[1757511422442,0.001,113520.0,113510.0,1.70238727]
[1757511422635,0.001,113520.0,113510.0,1.79047827]
[1757511422836,0.3608,113540.0,113530.0,0.19986803]
[1757511423032,0.4315846,113550.0,113540.0,0.01289]
[1757511423233,0.4315846,113550.0,113540.0,0.03605]
[1757511423641,0.44037947,113550.0,113540.0,0.03605]
[1757511424543,0.4315846,113550.0,113540.0,0.03605]
[1757511424741,0.0707846,113550.0,113540.0,0.44986803]
[1757511424943,1.35329803,113570.0,113540.0,0.81066803]
[1757511425143,0.3892487,113570.0,113560.0,0.03605]
[1757511425543,0.38030543,113570.0,113560.0,0.19986803]
[1757511425740,0.3608,113570.0,113560.0,0.19986803]
[1757511426144,1.19819089,113580.0,113570.0,0.01289]
[1757511426446,0.3803087,113580.0,113570.0,0.03605]
[1757511426640,0.54412673,113580.0,113570.0,0.03605]
[1757511427232,0.55308544,113580.0,113570.0,0.03605]
[1757511427736,0.80308544,113580.0,113570.0,0.01289]
[1757511428241,1.22574741,113580.0,113570.0,0.01289]
[1757511428449,1.38956544,113580.0,113570.0,0.01289]
[1757511428743,1.64556544,113580.0,113570.0,0.001]
[1757511431338,0.56708544,113580.0,113570.0,0.0147]
[1757511431544,1.39508544,113580.0,113570.0,0.0147]
[1757511432447,0.56708544,113580.0,113570.0,0.0147]
[1757511432651,1.39588544,113580.0,113570.0,0.0147]
[1757511432842,0.56708544,113580.0,113570.0,0.0147]
[1757511433044,1.39596544,113580.0,113570.0,0.0147]
[1757511433641,0.56708544,113580.0,113570.0,0.0147]
[1757511433848,0.56708544,113580.0,113570.0,0.0362]
[1757511433849,1.39592544,113580.0,113570.0,0.0362]
[1757511434151,0.40326741,113580.0,113570.0,0.0362]
[1757511434449,0.40326741,113580.0,113570.0,0.45001803]
[1757511434942,0.0335087,113580.0,113570.0,0.45001803]
[1757511435738,0.008,113580.0,113570.0,0.80981803]
[1757511435941,0.011,113580.0,113570.0,0.80981803]
[1757511437444,0.011,113580.0,113570.0,0.44901803]
[1757511437445,0.003,113580.0,113570.0,0.44901803]
[1757511437650,0.007,113580.0,113570.0,0.44901803]
[1757511437848,0.007,113580.0,113570.0,0.19901803]
[1757511438045,0.3678,113580.0,113570.0,0.0352]
[1757511438247,0.38731671,113580.0,113570.0,0.0352]
[1757511438744,0.3678,113580.0,113570.0,0.0352]
[1757511438948,0.38731709,113580.0,113570.0,0.0352]
[1757511439446,0.55113512,113580.0,113570.0,0.0137]
[1757511439644,0.55113512,113580.0,113550.0,0.04709104]
[1757511439645,2.74139315,113580.0,113550.0,0.04709104]
[1757511439845,0.25,113570.0,113550.0,0.0137]
[1757511440053,0.26951709,113570.0,113560.0,0.0137]
[1757511440355,0.25,113560.0,113550.0,0.0137]
[1757511440554,1.37465512,113560.0,113550.0,0.0137]
[1757511440754,0.63031709,113560.0,113550.0,0.0137]
[1757511440950,1.19112,113560.0,113550.0,0.0352]
[1757511441557,1.60493803,113560.0,113550.0,0.0137]
[1757511442159,1.60893803,113560.0,113550.0,0.0137]
[1757511443649,1.35861803,113560.0,113550.0,0.0352]
[1757511444360,1.37834119,113560.0,113550.0,0.0137]
[1757511444755,1.62834119,113560.0,113550.0,0.0137]
[1757511445664,1.62834119,113560.0,113540.0,0.0137]
[1757511445855,0.52461803,113550.0,113540.0,0.0137]
[1757511446057,0.54434119,113550.0,113530.0,0.0137]
[1757511446358,1.35453803,113540.0,113530.0,0.0137]
[1757511447048,1.37426211,113540.0,113530.0,0.0137]
[1757511447247,1.35453803,113540.0,113530.0,0.0137]
[1757511447647,1.37425827,113540.0,113530.0,0.0137]
[1757511447849,1.37485827,113540.0,113530.0,0.0137]
[1757511448255,1.35513803,113540.0,113530.0,0.0352]
[1757511448756,1.35813803,113540.0,113530.0,0.0352]
[1757511448956,1.36113803,113540.0,113530.0,0.0352]
[1757511449665,1.36097803,113540.0,113530.0,0.0352]
[1757511449853,1.3806909,113540.0,113530.0,0.0352]
[1757511450053,0.53061803,113540.0,113530.0,0.0352]
[1757511450254,1.36049803,113540.0,113530.0,0.0352]
[1757511450551,0.53061803,113540.0,113530.0,0.0352]
[1757511450755,1.36053803,113540.0,113530.0,0.0352]
[1757511451162,0.3668,113540.0,113530.0,0.0352]
[1757511451358,0.3668,113540.0,113530.0,0.2852]
[1757511451557,0.3668,113540.0,113530.0,0.44901803]
[1757511451757,0.006,113540.0,113530.0,0.44901803]
[1757511451964,0.006,113540.0,113530.0,0.80981803]
[1757511452150,0.006,113540.0,113530.0,0.89789473]
[1757511452458,0.3608,113560.0,113550.0,0.0352]
[1757511452650,0.38050216,113560.0,113550.0,0.0352]
[1757511452856,0.54432019,113560.0,113550.0,0.0352]
[1757511453250,0.79432019,113560.0,113550.0,0.0137]
[1757511453662,0.79432019,113560.0,113540.0,0.0137]
[1757511453965,1.35477803,113550.0,113540.0,0.0137]
[1757511454158,1.44433499,113550.0,113540.0,0.0137]
[1757511454459,1.42463283,113550.0,113540.0,0.0137]
[1757511454661,0.4306548,113550.0,113540.0,0.0352]
[1757511455265,0.4306548,113550.0,113540.0,0.2852]
[1757511455558,0.0698548,113550.0,113540.0,0.44901803]
[1757511455757,0.002,113550.0,113540.0,0.44901803]
[1757511456658,0.002,113550.0,113540.0,0.80981803]
[1757511456866,1.19144,113580.0,113550.0,0.0352]
[1757511457070,1.37504187,113580.0,113570.0,0.0352]
[1757511457561,1.37504187,113580.0,113570.0,0.19901803]
[1757511457562,0.01978384,113580.0,113570.0,0.19901803]
[1757511457755,0.01978384,113580.0,113570.0,0.80981803]
[1757511458160,0.02478384,113580.0,113570.0,0.80981803]
[1757511458354,0.02478384,113580.0,113570.0,0.646]
[1757511458554,0.03078384,113580.0,113570.0,0.646]
[1757511458753,0.03078384,113580.0,113570.0,0.80981803]
[1757511459356,0.03078384,113580.0,113570.0,0.396]
[1757511459554,0.03078384,113580.0,113570.0,0.55981803]
[1757511459967,0.03078384,113580.0,113570.0,0.89786363]
[1757511460262,1.88096889,113620.0,113570.0,0.89786363]
[1757511460263,0.41700645,113630.0,113620.0,0.01264]
[1757511460457,0.3608,113640.0,113620.0,0.0348]
[1757511460458,0.04729165,113640.0,113620.0,0.0348]
[1757511460654,0.21110968,113640.0,113620.0,0.0348]
[1757511460956,0.21110968,113640.0,113630.0,0.0348]
[1757511460957,0.41719094,113640.0,113630.0,0.0348]
[1757511461160,0.40815874,113640.0,113630.0,0.0348]
[1757511461659,0.47926742,113640.0,113630.0,0.0348]
[1757511461868,0.07110868,113640.0,113630.0,0.0348]
[1757511462053,0.04933922,113640.0,113630.0,0.19861803]
[1757511462258,0.04933922,113640.0,113630.0,0.0348]
[1757511462655,0.04733922,113640.0,113630.0,0.0348]
[1757511462854,0.04733922,113640.0,113630.0,0.19861803]
[1757511463061,0.04733922,113640.0,113630.0,0.55941803]
[1757511463260,0.04733922,113640.0,113630.0,0.3956]
[1757511463660,0.04733922,113640.0,113630.0,1.22656]
[1757511463967,0.05033922,113640.0,113630.0,1.22656]
[1757511464569,0.05033922,113640.0,113630.0,1.3912937]
[1757511465365,0.05033922,113640.0,113630.0,1.8940267]
[1757511465570,0.0710258,113660.0,113650.0,0.01264]
[1757511465867,0.06305553,113670.0,113660.0,0.0348]
[1757511466069,0.06305553,113670.0,113660.0,0.5603337]
[1757511466368,0.44398008,113680.0,113660.0,0.3956]
[1757511466563,0.60871378,113680.0,113660.0,1.3914137]
[1757511466769,0.02165,113670.0,113660.0,0.0348]
[1757511467065,0.1863837,113670.0,113650.0,0.37344]
[1757511467270,0.5471837,113660.0,113650.0,0.0348]
[1757511467563,0.5591337,113660.0,113640.0,0.84356]
[1757511467764,0.1863837,113650.0,113640.0,0.02216]
[1757511467962,0.5471837,113650.0,113640.0,0.02216]
[1757511468156,0.5591337,113650.0,113630.0,0.01264]
[1757511468358,0.5591337,113640.0,113620.0,0.3608]
[1757511468565,0.5591337,113640.0,113620.0,0.02216]
[1757511468566,0.5471837,113630.0,113620.0,0.02216]
[1757511468963,0.38245,113630.0,113620.0,0.02216]
[1757511469160,0.5471837,113630.0,113620.0,0.02216]
[1757511469470,0.5471837,113630.0,113610.0,2.62036]
[1757511469667,0.5471837,113630.0,113620.0,0.006]
[1757511470063,0.8091337,113630.0,113620.0,0.006]
[1757511470267,0.7971837,113630.0,113620.0,0.02816]
[1757511470572,0.7971837,113630.0,113620.0,0.009]
[1757511471267,0.8091337,113630.0,113620.0,0.006]
[1757511471470,0.8091337,113630.0,113600.0,0.56822787]
[1757511471677,0.8091337,113630.0,113620.0,0.005]
[1757511471678,0.3944,113630.0,113620.0,0.005]
[1757511472061,0.38245,113630.0,113620.0,0.02716]
[1757511472266,0.38245,113630.0,113620.0,0.0378]
[1757511472572,0.02165,113630.0,113620.0,0.3986]
[1757511472772,0.02165,113630.0,113620.0,0.0378]
[1757511473369,0.5471837,113640.0,113630.0,0.0348]
[1757511473962,0.38245,113640.0,113630.0,0.0348]
[1757511474167,0.5471837,113640.0,113630.0,0.0348]
[1757511474473,0.1863837,113640.0,113630.0,0.0348]
[1757511474878,0.02265,113640.0,113630.0,0.0348]
[1757511475369,0.5481837,113640.0,113630.0,0.02216]
[1757511475571,0.9748674,113640.0,113620.0,0.003]
[1757511475772,0.5591337,113630.0,113620.0,0.003]
[1757511475970,0.5591337,113630.0,113610.0,0.64828]
[1757511476580,0.3944,113630.0,113610.0,0.01264]
[1757511476878,0.5591337,113630.0,113610.0,0.01264]
[1757511477269,0.5591337,113630.0,113610.0,0.01564]
[1757511478172,0.5591337,113630.0,113620.0,0.02216]
[1757511479074,0.8091337,113630.0,113610.0,0.003]
[1757511479280,0.38245,113620.0,113610.0,0.1995337]
[1757511479571,0.02165,113620.0,113610.0,0.1995337]
[1757511479768,0.5471837,113630.0,113620.0,0.0348]
[1757511479969,0.38245,113630.0,113620.0,0.0348]
[1757511480371,0.02165,113630.0,113620.0,0.1995337]